bitfinex/quotes_BTCUSD_20250423
["timestamp","ask_amount","ask_price","bid_price","bid_amount"]
[1745438775669,0.01000062,93526.0,93515.0,0.21386938]
[1745438775845,0.01000062,93526.0,93516.0,0.21386532]
[1745438776053,0.01000062,93526.0,93515.0,0.15882628]
[1745438776654,0.01000062,93526.0,93517.0,0.001]
[1745438776893,0.01000062,93526.0,93517.0,0.21386265]
[1745438778099,0.01000062,93526.0,93517.0,0.21486265]
[1745438778504,0.01000062,93526.0,93517.0,0.21386265]
[1745438778711,0.01000062,93526.0,93517.0,0.21486265]
[1745438778915,0.01000062,93526.0,93517.0,0.21586265]
[1745438779123,0.0174524,93525.0,93517.0,0.21586265]
[1745438779976,0.0174524,93525.0,93517.0,0.21486265]
[1745438780172,0.02745302,93525.0,93517.0,0.21486265]
[1745438780370,0.02745302,93525.0,93517.0,0.21586265]
[1745438780617,0.02745302,93525.0,93517.0,0.21486265]
[1745438780851,0.02745302,93525.0,93517.0,0.001]
[1745438781082,0.13107977,93524.0,93517.0,0.002]
[1745438781300,0.12808476,93524.0,93517.0,0.002]
[1745438781547,0.13107977,93524.0,93517.0,0.002]
[1745438781813,0.01299563,93523.0,93517.0,0.002]
[1745438782023,0.048,93519.0,93517.0,0.001]
[1745438782243,0.10689014,93518.0,93517.0,0.001]
[1745438782685,0.12685993,93518.0,93517.0,0.001]
[1745438783143,0.13686055,93518.0,93517.0,0.001]
[1745438783547,0.13686055,93518.0,93496.0,0.21391131]
[1745438783751,0.05201587,93517.0,93500.0,0.00053378]
[1745438783969,0.10689014,93516.0,93500.0,0.00053378]
[1745438784175,0.12685993,93516.0,93500.0,0.00053378]
[1745438784709,0.01996979,93515.0,93500.0,0.00053378]
[1745438784926,0.13686055,93514.0,93500.0,0.00053378]
[1745438785115,0.06033062,93513.0,93500.0,0.00053378]
[1745438785261,0.10689014,93512.0,93500.0,0.00053378]
[1745438785661,0.10689014,93512.0,93501.0,0.21390145]
[1745438786339,0.01000062,93511.0,93501.0,0.21390145]
[1745438786612,0.10689014,93510.0,93500.0,0.00053378]
[1745438787273,0.01188908,93509.0,93501.0,0.21390145]
[1745438787514,0.10689014,93508.0,93501.0,0.21390145]
[1745438787738,0.10689014,93508.0,93503.0,0.21389679]
[1745438788259,0.10689014,93508.0,93504.0,0.21389267]
[1745438788464,0.001,93511.0,93510.0,0.21388086]
[1745438788679,0.001,93513.0,93510.0,0.21388086]
[1745438788890,0.01099008,93518.0,93507.0,0.21388723]
[1745438789115,0.10689014,93517.0,93507.0,0.21388723]
[1745438789333,0.001,93510.0,93507.0,0.21388723]
[1745438789566,0.002,93508.0,93507.0,0.21388723]
[1745438789777,0.002,93508.0,93505.0,0.21389056]
[1745438790013,0.002,93508.0,93507.0,0.21388773]
[1745438790221,0.002,93508.0,93503.0,0.21389688]
[1745438790464,0.002,93508.0,93504.0,0.2138924]
[1745438790659,0.002,93508.0,93503.0,0.21389688]
[1745438790893,0.002,93508.0,93502.0,0.09836]
[1745438791101,0.002,93508.0,93500.0,0.2144353]
[1745438791337,0.003,93513.0,93500.0,0.2144353]
[1745438791545,0.1247932,93512.0,93500.0,0.2144353]
[1745438791964,0.1247932,93512.0,93504.0,0.21389293]
[1745438792179,0.1247932,93512.0,93505.0,0.21389044]
[1745438792390,0.10689014,93512.0,93505.0,0.21389044]
[1745438792994,0.10689014,93512.0,93504.0,0.21389293]
[1745438793145,0.10889014,93512.0,93504.0,0.21389293]
[1745438793347,0.10789014,93512.0,93507.0,0.213886]
[1745438793920,0.002,93512.0,93509.0,0.21388175]
[1745438794176,0.002,93512.0,93508.0,0.21388544]
[1745438794601,0.001,93512.0,93511.0,0.21387858]
[1745438794806,0.001,93512.0,93511.0,0.21687252]
[1745438794807,0.003,93512.0,93511.0,0.21687252]
[1745438795231,0.002,93512.0,93511.0,0.21687252]
[1745438795464,0.01000062,93522.0,93519.0,0.21385861]
[1745438795877,0.01000062,93530.0,93519.0,0.21385861]
[1745438796089,0.02997041,93530.0,93519.0,0.21385861]
[1745438796306,0.10689014,93529.0,93519.0,0.21385861]
[1745438796524,0.12685993,93529.0,93519.0,0.21385861]
[1745438796730,0.12685993,93529.0,93517.0,0.21386373]
[1745438796731,0.02997041,93528.0,93517.0,0.21386373]
[1745438796948,0.10689014,93527.0,93517.0,0.21386373]
[1745438797360,0.01996979,93526.0,93518.0,0.21386093]
[1745438797574,0.12685993,93526.0,93518.0,0.21386093]
[1745438797979,0.01996979,93525.0,93518.0,0.21386093]
[1745438798196,0.01996979,93525.0,93521.0,0.21385349]
[1745438798394,0.01000062,93524.0,93518.0,0.21386093]
[1745438799381,0.01000062,93524.0,93520.0,0.21385794]
[1745438799583,0.01000062,93523.0,93520.0,0.21385794]
[1745438800576,0.01000062,93525.0,93520.0,0.21385794]
[1745438801819,0.01000062,93524.0,93520.0,0.21385794]
[1745438802014,0.02378668,93524.0,93520.0,0.21385794]
[1745438802645,0.01000062,93523.0,93520.0,0.21385794]
[1745438803592,0.01000062,93522.0,93521.0,0.21385359]
[1745438803795,0.01000062,93522.0,93520.0,0.21385794]
[1745438804683,0.01100062,93522.0,93520.0,0.21385794]
[1745438805241,0.01996979,93528.0,93523.0,0.21385054]
[1745438805242,0.01000062,93525.0,93523.0,0.21385054]
[1745438805404,0.01000062,93525.0,93524.0,0.00299361]
[1745438805677,0.01000062,93525.0,93524.0,0.46939332]
[1745438805897,0.01997433,93558.0,93536.0,0.2245102]
[1745438806117,0.01997433,93558.0,93541.0,0.21380998]
[1745438806338,1e-08,93542.0,93541.0,1.1740929]
[1745438806571,1e-08,93542.0,93541.0,1.17110012]
[1745438807234,0.00013357,93542.0,93541.0,1.17110012]
[1745438807976,0.00013357,93542.0,93541.0,1.17210012]
[1745438808184,0.00013357,93542.0,93541.0,1.27899026]
[1745438808400,0.00013357,93542.0,93541.0,1.27799026]
[1745438808617,0.00013357,93542.0,93541.0,1.27999026]
[1745438808828,0.00013357,93542.0,93541.0,1.28199026]
[1745438812499,1e-08,93542.0,93541.0,1.29653111]
[1745438812954,1e-08,93542.0,93541.0,1.34653111]
[1745438813446,1e-08,93542.0,93541.0,1.34453111]
[1745438813690,1e-08,93542.0,93541.0,1.35253111]
[1745438813691,0.00100001,93542.0,93541.0,1.35253111]
[1745438813910,0.00100001,93542.0,93541.0,1.35053111]
[1745438814145,0.00100001,93542.0,93541.0,1.35453111]
[1745438814573,1e-08,93542.0,93541.0,1.34253111]
[1745438814820,0.00100001,93542.0,93541.0,1.35253111]
[1745438816518,1e-08,93542.0,93541.0,1.35353111]
[1745438819827,0.0008502,93561.0,93558.0,0.01068855]
[1745438820036,0.00131323,93561.0,93559.0,0.62453013]
[1745438820268,0.00131323,93561.0,93560.0,0.04106138]
[1745438820475,0.00131323,93561.0,93560.0,0.10689014]
[1745438821360,0.00131323,93561.0,93560.0,0.20513014]
[1745438821987,0.00131323,93561.0,93560.0,0.10689014]
[1745438822197,0.00131323,93561.0,93560.0,0.20513014]
[1745438822829,0.00131323,93561.0,93560.0,0.20613014]
[1745438823257,0.00131323,93561.0,93560.0,0.20513014]
[1745438823400,0.00131323,93561.0,93560.0,0.20613014]
[1745438825514,0.00131323,93561.0,93560.0,0.62553013]
[1745438826066,0.00131323,93561.0,93560.0,0.65800189]
[1745438826924,0.00131323,93561.0,93560.0,0.62553013]
[1745438827152,0.00131323,93561.0,93560.0,0.52729013]
[1745438827374,0.00131323,93561.0,93560.0,0.51863999]
[1745438827820,0.04721323,93561.0,93560.0,0.001]
[1745438828286,0.15510337,93561.0,93560.0,0.001]
[1745438828778,0.19898105,93561.0,93560.0,0.001]
[1745438829026,0.0471,93560.0,93548.0,0.09824]
[1745438829236,0.0471,93560.0,93541.0,0.21380775]
[1745438829237,0.0471,93558.0,93541.0,0.21380775]
[1745438829462,0.10689014,93557.0,93542.0,0.09824]
[1745438829689,0.10689014,93557.0,93541.0,0.01069049]
[1745438829918,0.0471,93558.0,93555.0,0.01068889]
[1745438830151,0.00731323,93561.0,93560.0,0.21376656]
[1745438830367,0.01031323,93561.0,93560.0,0.21376656]
[1745438830589,0.01031323,93561.0,93557.0,0.21377342]
[1745438830590,0.00531323,93561.0,93557.0,0.21377342]
[1745438830796,0.00531323,93561.0,93558.0,0.21376891]
[1745438831221,0.00231323,93561.0,93554.0,0.21377984]
[1745438831430,0.00531323,93561.0,93555.0,0.21377578]
[1745438831638,0.00531323,93561.0,93556.0,0.21377379]
[1745438832047,0.00731323,93561.0,93556.0,0.21377379]
[1745438832470,0.01031323,93561.0,93556.0,0.21377379]
[1745438832856,0.00731323,93561.0,93556.0,0.21377379]
[1745438833058,0.00931323,93561.0,93556.0,0.21377379]
[1745438833292,0.00931323,93561.0,93554.0,0.21377955]
[1745438833497,0.00931323,93561.0,93556.0,0.21377386]
[1745438833697,0.00431323,93561.0,93556.0,0.21377386]
[1745438833910,0.00231323,93561.0,93552.0,0.01068924]
[1745438834111,0.01340361,93561.0,93553.0,0.01068912]
[1745438834305,0.01984011,93560.0,93553.0,0.01068912]
[1745438834667,0.01984011,93559.0,93556.0,0.21377402]
[1745438834866,0.02975797,93559.0,93556.0,0.21377402]
[1745438835204,0.01984011,93558.0,93556.0,0.21377402]
[1745438835414,0.01984011,93558.0,93555.0,0.21377766]
[1745438835600,0.01984011,93557.0,93555.0,0.21377766]
[1745438835798,0.01984011,93556.0,93555.0,0.21377766]
[1745438836004,0.02975797,93556.0,93555.0,0.21377766]
[1745438836220,0.02975797,93556.0,93553.0,0.21378256]
[1745438836433,0.01984011,93555.0,93554.0,0.213778]
[1745438837005,0.02975797,93555.0,93554.0,0.213778]
[1745438837625,0.01191786,93555.0,93553.0,0.21378256]
[1745438838035,0.01391786,93555.0,93553.0,0.21378256]
[1745438838587,0.002,93555.0,93553.0,0.21378256]
[1745438839016,0.00231323,93561.0,93554.0,0.09824]
[1745438839217,0.002,93555.0,93554.0,0.31201862]
[1745438839779,0.002,93555.0,93545.0,0.21380024]
[1745438840026,0.0498,93555.0,93540.0,0.21381164]
[1745438840210,0.0498,93555.0,93548.0,0.51763999]
[1745438840211,0.0966,93555.0,93548.0,0.51763999]
[1745438840348,0.02996084,93554.0,93548.0,0.51763999]
[1745438840993,0.01997359,93553.0,93548.0,0.51763999]
[1745438841221,0.00998725,93552.0,93548.0,0.51763999]
[1745438841431,0.01997359,93551.0,93548.0,0.51763999]
[1745438841839,0.01997359,93550.0,93548.0,0.51763999]
[1745438842352,0.01997359,93549.0,93548.0,0.51763999]
[1745438842631,0.02996084,93549.0,93548.0,0.51763999]
[1745438843238,0.02996084,93549.0,93548.0,0.09824]
[1745438843645,0.03096084,93549.0,93548.0,0.09824]
[1745438844729,0.03196084,93549.0,93545.0,0.09816]
[1745438845347,0.01997359,93548.0,93545.0,0.09816]
[1745438845555,0.02996084,93548.0,93545.0,0.09816]
[1745438845764,0.01997359,93547.0,93545.0,0.09816]
[1745438846174,0.00998725,93548.0,93545.0,0.09816]
[1745438846805,0.001,93548.0,93545.0,0.31195891]
[1745438847016,0.001,93548.0,93545.0,0.39019192]
[1745438847220,0.001,93548.0,93545.0,0.31195891]
[1745438848276,0.002,93548.0,93545.0,0.31195891]
[1745438848479,0.002,93548.0,93547.0,0.21379627]
[1745438848874,0.011983,93548.0,93547.0,0.21379627]
[1745438849280,0.010983,93548.0,93547.0,0.21379627]
[1745438849711,0.002,93548.0,93547.0,0.21379627]
[1745438849933,0.001,93548.0,93547.0,0.21379627]
[1745438850347,0.002,93548.0,93547.0,0.21379627]
[1745438853481,0.002,93548.0,93547.0,0.21678928]
[1745438853706,0.002,93548.0,93547.0,0.21379627]
[1745438855004,0.002,93548.0,93547.0,0.63319626]
[1745438856008,0.00131323,93561.0,93560.0,0.21376656]
[1745438857804,0.00331323,93561.0,93560.0,0.21376656]
[1745438858016,0.00331323,93561.0,93560.0,0.30141318]
[1745438858211,0.00531323,93561.0,93560.0,0.21376656]
[1745438858848,0.00531323,93561.0,93560.0,0.26206656]
[1745438859093,0.00331323,93561.0,93560.0,0.31086656]
[1745438859283,0.00331323,93561.0,93560.0,0.21376656]
[1745438859493,0.00531323,93561.0,93560.0,0.21376656]
[1745438859699,0.00331323,93561.0,93560.0,0.21376656]
[1745438859910,0.00131323,93561.0,93560.0,0.42180885]
[1745438860135,0.00131323,93561.0,93560.0,0.4188167]
[1745438861464,0.00131323,93561.0,93560.0,0.31192656]
[1745438863743,0.00131323,93561.0,93560.0,0.73132655]
[1745438867115,0.00131323,93561.0,93560.0,0.51755999]
[1745438867999,0.00131323,93561.0,93560.0,0.73132655]
[1745438871269,0.00131323,93561.0,93560.0,0.63316655]
[1745438871503,0.00131323,93561.0,93560.0,0.51755999]
[1745438871909,0.00431323,93561.0,93554.0,0.09816]
[1745438872121,0.00331323,93561.0,93556.0,0.21377421]
[1745438872470,0.00531323,93561.0,93557.0,0.21377181]
[1745438872702,0.00331323,93561.0,93557.0,0.21377181]
[1745438873495,0.00331323,93561.0,93556.0,0.21377359]
[1745438873678,0.00231323,93561.0,93556.0,0.21377359]
[1745438874102,0.00431323,93561.0,93556.0,0.21377359]
[1745438874343,0.00431323,93561.0,93559.0,0.21376669]
[1745438874570,0.00231323,93561.0,93559.0,0.21376669]
[1745438875018,0.00331323,93561.0,93559.0,0.21376669]
[1745438875235,0.00231323,93561.0,93559.0,0.21376669]
[1745438875415,0.00131323,93561.0,93559.0,0.21376669]
[1745438875595,0.00331323,93561.0,93559.0,0.21376669]
[1745438880243,0.01330266,93561.0,93559.0,0.21376669]
[1745438881540,0.00331323,93561.0,93559.0,0.21376669]
[1745438882202,0.00999469,93560.0,93559.0,0.21376669]
[1745438883513,0.01099469,93560.0,93559.0,0.21376669]
[1745438884145,0.01199469,93560.0,93559.0,0.21376669]
[1745438884364,0.01199469,93560.0,93556.0,0.21377359]
[1745438884592,0.54278515,93559.0,93533.0,0.21382792]
[1745438884803,0.37043414,93550.0,93538.0,0.09808]
[1745438885017,0.37043414,93550.0,93541.0,0.21380772]
[1745438885477,0.49768515,93549.0,93538.0,0.09808]
[1745438885685,0.05278293,93548.0,93538.0,0.09808]
[1745438885914,0.34,93546.0,93534.0,0.001]
[1745438886124,0.00299501,93545.0,93534.0,0.001]
[1745438886328,0.37043414,93544.0,93535.0,0.21382164]
[1745438886537,0.37043414,93544.0,93534.0,0.001]
[1745438886538,0.37043414,93544.0,93534.0,0.21482562]
[1745438886784,0.09478573,93543.0,93534.0,0.001]
[1745438887011,0.09179072,93543.0,93538.0,0.001]
[1745438887463,0.09179072,93543.0,93535.0,0.2138237]
[1745438888340,0.09179072,93543.0,93536.0,0.21381922]
[1745438888974,0.09179072,93543.0,93535.0,0.2158237]
[1745438889182,0.01079169,93542.0,93535.0,0.2178237]
[1745438889428,0.01079169,93542.0,93536.0,0.21381919]
[1745438890256,0.01079169,93542.0,93538.0,0.21381605]
[1745438890663,0.01998105,93541.0,93538.0,0.21381605]
[1745438890874,0.01998105,93541.0,93536.0,0.21381919]
[1745438891081,0.01998105,93541.0,93534.0,0.2138245]
[1745438891082,0.05278293,93540.0,93534.0,0.2138245]
[1745438891285,0.05278293,93540.0,93535.0,0.21382175]
[1745438891487,0.05278293,93540.0,93537.0,0.21381848]
[1745438891893,0.00999469,93541.0,93539.0,0.21381455]
[1745438893106,0.002,93541.0,93539.0,0.21381455]
[1745438893275,0.001,93540.0,93539.0,0.21381455]
[1745438893488,0.002,93541.0,93539.0,0.21381455]
[1745438893935,0.004,93541.0,93539.0,0.21381455]
[1745438894572,0.002,93541.0,93539.0,0.21381455]
[1745438894786,0.00982346,93541.0,93539.0,0.21381455]
[1745438895120,0.002,93540.0,93539.0,0.21381455]
[1745438895419,0.004,93540.0,93539.0,0.21381455]
[1745438895765,0.002,93540.0,93539.0,0.21381455]
[1745438896313,0.002,93541.0,93539.0,0.21381455]
[1745438896510,0.00999469,93552.0,93545.0,0.2137987]
[1745438896711,0.10689014,93551.0,93547.0,0.21379601]
[1745438896922,0.10689014,93551.0,93545.0,0.2137987]
[1745438897178,0.01972757,93550.0,93543.0,0.21380379]
[1745438897574,0.01972757,93550.0,93541.0,0.21380896]
[1745438898286,0.00999469,93549.0,93543.0,0.21380379]
[1745438898743,0.06489552,93549.0,93543.0,0.21380379]
[1745438899333,0.02997574,93549.0,93544.0,0.2138012]
[1745438899741,0.00999469,93549.0,93544.0,0.2138012]
[1745438899895,0.01299469,93549.0,93544.0,0.2138012]
[1745438900099,0.00999469,93548.0,93544.0,0.2138012]
[1745438900306,0.02997574,93548.0,93544.0,0.2138012]
[1745438900666,0.08180283,93548.0,93544.0,0.2138012]
[1745438901035,0.00999469,93547.0,93544.0,0.2138012]
[1745438901784,0.00999469,93547.0,93545.0,0.21379922]
[1745438902279,0.00999469,93547.0,93539.0,0.01069072]
[1745438902280,0.01997886,93550.0,93539.0,0.21381438]
[1745438902504,0.01997886,93550.0,93541.0,0.21380998]
[1745438902505,0.10689014,93549.0,93541.0,0.21380998]
[1745438902715,0.01648399,93548.0,93541.0,0.21380998]
[1745438902908,0.12637413,93548.0,93541.0,0.21380998]
[1745438903132,0.01997886,93547.0,93541.0,0.21380998]
[1745438903738,0.12037413,93548.0,93541.0,0.21380998]
[1745438903990,0.003,93547.0,93541.0,0.21380998]
[1745438904201,0.0145353,93546.0,93541.0,0.21380998]
[1745438904410,0.00998957,93545.0,93543.0,0.21380523]
[1745438905168,0.0145353,93546.0,93545.0,0.21380084]
[1745438905397,0.002,93547.0,93545.0,0.21380084]
[1745438905601,0.002,93547.0,93543.0,0.21380523]
[1745438905919,0.002,93547.0,93545.0,0.21379921]
[1745438906218,0.10889014,93548.0,93545.0,0.21379921]
[1745438906431,0.10689014,93548.0,93545.0,0.21379921]
[1745438906557,0.003,93547.0,93545.0,0.21379921]
[1745438907278,0.00998957,93551.0,93544.0,0.01069015]
[1745438907511,0.00998957,93551.0,93549.0,0.21378956]
[1745438907948,0.00998957,93551.0,93545.0,0.21379864]
[1745438908163,0.003,93548.0,93546.0,0.21379657]
[1745438908414,0.003,93548.0,93540.0,0.21381207]
[1745438908627,0.00998957,93553.0,93542.0,0.10865038]
[1745438908877,0.004,93551.0,93542.0,0.10865038]
[1745438909097,0.003,93547.0,93542.0,0.10865038]
[1745438909310,0.004,93551.0,93547.0,0.21379481]
[1745438909527,0.00998957,93550.0,93547.0,0.21379481]
[1745438909744,0.001,93548.0,93547.0,0.21379481]
[1745438909955,0.001,93548.0,93542.0,0.09796]
[1745438910173,0.001,93548.0,93545.0,0.21380012]
[1745438910384,0.00998957,93549.0,93541.0,0.31176998]
[1745438910592,0.00998957,93549.0,93542.0,0.21380589]
[1745438910797,0.04083735,93548.0,93542.0,0.21380589]
[1745438911012,0.04083735,93548.0,93541.0,0.09796]
[1745438911215,0.08983735,93548.0,93541.0,0.09796]
[1745438911427,0.08983735,93548.0,93539.0,0.21381281]
[1745438911428,0.00998957,93547.0,93539.0,0.21381281]
[1745438912364,0.003,93550.0,93545.0,0.21379942]
[1745438912582,0.001,93548.0,93545.0,0.21379942]
[1745438913436,0.001,93547.0,93545.0,0.21379942]
[1745438913611,0.001,93548.0,93545.0,0.21379942]
[1745438914022,0.002,93548.0,93545.0,0.21379942]
[1745438914226,0.00954498,93548.0,93542.0,0.21380585]
[1745438914911,0.0100042,93547.0,93539.0,0.21381428]
[1745438915122,0.0100042,93547.0,93543.0,0.21380387]
[1745438915970,0.0100042,93546.0,93543.0,0.21380387]
[1745438916675,0.0100042,93545.0,93543.0,0.21380387]
[1745438917999,0.00854498,93548.0,93543.0,0.21380387]
[1745438918204,0.00754498,93548.0,93544.0,0.21380122]
[1745438918380,0.001,93545.0,93544.0,0.21380122]
[1745438918957,0.00754498,93548.0,93545.0,0.21379917]
[1745438919191,0.02893498,93548.0,93543.0,0.21380452]
[1745438919402,0.002,93545.0,93543.0,0.21380452]
[1745438919818,0.004,93545.0,93543.0,0.21380452]
[1745438920330,0.00854498,93548.0,93543.0,0.21380452]
[1745438920534,0.00754498,93548.0,93543.0,0.21380452]
[1745438920709,0.00954498,93548.0,93544.0,0.21380166]
[1745438920934,0.01154498,93548.0,93544.0,0.21380166]
[1745438921150,0.002,93545.0,93544.0,0.21380166]
[1745438921587,0.01200742,93545.0,93544.0,0.21380166]
[1745438923293,0.01400742,93545.0,93544.0,0.21380166]
[1745438925447,0.004,93545.0,93544.0,0.21380166]
[1745438928172,0.004,93545.0,93535.0,0.01069118]
[1745438928375,0.004,93545.0,93535.0,0.21382359]
[1745438928587,0.004,93545.0,93531.0,0.09796]
[1745438928588,0.16639433,93544.0,93531.0,0.09796]
[1745438928793,0.24287291,93540.0,93532.0,0.21383009]
[1745438929001,0.24287291,93540.0,93529.0,0.21383704]
[1745438929217,0.01300419,93539.0,93529.0,0.21383704]
[1745438929421,0.01300419,93539.0,93527.0,0.21384081]
[1745438929633,0.01300419,93539.0,93534.0,0.21382551]
[1745438929924,0.0455374,93538.0,93532.0,0.21382873]
[1745438930166,0.01300419,93539.0,93532.0,0.21382873]
[1745438930483,0.01000918,93538.0,93532.0,0.21382873]
[1745438931725,0.01000918,93537.0,93532.0,0.21382873]
[1745438932777,0.10689014,93536.0,93529.0,0.21383582]
[1745438932991,0.0498103,93535.0,93530.0,0.2138331]
[1745438933199,0.0498103,93535.0,93531.0,0.21383127]
[1745438933976,0.10689014,93536.0,93531.0,0.21383127]
[1745438934412,0.10689014,93536.0,93532.0,0.21382902]
[1745438935081,0.10689014,93536.0,93531.0,0.21483127]
[1745438935871,0.10689014,93536.0,93531.0,0.21383127]
[1745438936091,0.10689014,93536.0,93531.0,0.001]
[1745438936321,0.04980966,93535.0,93531.0,0.001]
[1745438936914,0.34,93533.0,93531.0,0.001]
[1745438937111,0.44988515,93532.0,93531.0,0.001]
[1745438937383,0.34,93531.0,93521.0,0.0004251]
[1745438937542,0.16986126,93530.0,93521.0,0.0004251]
[1745438938122,0.01000279,93529.0,93521.0,0.0004251]
[1745438938328,0.10689014,93528.0,93521.0,0.0004251]
[1745438938565,0.10689014,93528.0,93521.0,0.00055866]
[1745438939158,0.01000279,93527.0,93521.0,0.21441367]
[1745438939384,0.10689014,93526.0,93521.0,0.21441367]
[1745438939809,0.10689014,93526.0,93521.0,0.00055866]
[1745438940427,0.15947749,93526.0,93521.0,0.00055866]
[1745438940605,0.11689293,93526.0,93523.0,0.21385102]
[1745438940807,0.11689293,93526.0,93521.0,0.00055866]
[1745438941014,0.11689293,93526.0,93522.0,0.21385148]
[1745438941368,0.10689014,93526.0,93524.0,0.21384883]
[1745438941588,0.01000279,93530.0,93529.0,0.21383741]
[1745438941946,0.01000279,93530.0,93527.0,0.21384012]
[1745438942138,0.01000279,93536.0,93526.0,0.21384305]
[1745438942335,0.41587151,93535.0,93526.0,0.21384305]
[1745438942661,0.41587151,93535.0,93526.0,0.21384319]
[1745438942870,0.002,93530.0,93526.0,0.21384319]
[1745438943090,0.004,93530.0,93527.0,0.21383975]
[1745438943284,0.01000279,93534.0,93527.0,0.21383975]
[1745438943509,0.07949383,93533.0,93527.0,0.21383975]
[1745438943714,0.01000279,93534.0,93527.0,0.21383975]
[1745438943898,0.01000279,93534.0,93529.0,0.21383561]
[1745438944747,0.35100279,93535.0,93529.0,0.21383561]
[1745438944952,0.35000279,93535.0,93531.0,0.21383241]
[1745438945151,0.002,93534.0,93532.0,0.21383056]
[1745438945363,0.002,93534.0,93533.0,0.21382827]
[1745438945583,0.01000279,93540.0,93533.0,0.21382827]
[1745438945789,0.14970578,93539.0,93534.0,0.213824]
[1745438946172,0.01000279,93540.0,93539.0,0.21381455]
[1745438946313,0.01000279,93540.0,93534.0,0.213824]
[1745438946513,0.01000279,93544.0,93536.0,0.21382118]
[1745438946729,0.003,93540.0,93536.0,0.21382118]
[1745438947128,0.003,93540.0,93538.0,0.21381496]
[1745438947676,0.003,93540.0,93536.0,0.21382121]
[1745438947876,0.003,93540.0,93534.0,0.21382551]
[1745438948089,0.01000279,93541.0,93535.0,0.21382184]
[1745438948294,0.001,93540.0,93534.0,0.21382551]
[1745438948641,0.004,93539.0,93534.0,0.21382551]
[1745438948887,0.001,93540.0,93535.0,0.21382152]
[1745438949039,0.01000279,93541.0,93537.0,0.21381729]
[1745438949239,0.01000279,93539.0,93537.0,0.21381729]
[1745438949666,0.01200279,93539.0,93537.0,0.21381729]
[1745438949866,0.01000279,93539.0,93537.0,0.21381729]
[1745438950504,0.01000279,93539.0,93538.0,0.10347447]
[1745438950646,0.01000279,93539.0,93538.0,0.14847447]
[1745438951051,0.01000279,93539.0,93538.0,0.0928]
[1745438952108,0.01000279,93539.0,93538.0,0.19068]
[1745438952302,0.01400279,93539.0,93538.0,0.19068]
[1745438952726,0.01000279,93539.0,93538.0,0.19068]
[1745438952864,0.01000279,93539.0,93538.0,0.19168]
[1745438953496,0.01000279,93539.0,93538.0,0.24941193]
[1745438953767,0.01000279,93539.0,93538.0,0.3543091]
[1745438953908,0.01000279,93539.0,93538.0,0.6943091]
[1745438954109,0.02000315,93548.0,93547.0,0.30909627]
[1745438954331,0.02000315,93548.0,93547.0,0.41598641]
[1745438954540,0.02000315,93548.0,93547.0,0.50248401]
[1745438955170,0.02000315,93548.0,93547.0,0.85702486]
[1745438955524,0.00750551,93553.0,93552.0,0.22832569]
[1745438955658,0.00750551,93553.0,93552.0,0.77051583]
[1745438956818,0.00796854,93553.0,93552.0,0.77151583]
[1745438956974,0.00796854,93553.0,93552.0,0.87940597]
[1745438957460,0.00046303,93553.0,93552.0,0.87940597]
[1745438957863,0.00046303,93553.0,93552.0,0.97724597]
[1745438958071,0.00046303,93553.0,93552.0,0.87840597]
[1745438958272,0.00046303,93553.0,93552.0,0.97624597]
[1745438958531,0.00046303,93553.0,93552.0,0.41697498]
[1745438958774,0.00046303,93553.0,93552.0,0.51481498]
[1745438959395,0.00046303,93553.0,93552.0,0.41697498]
[1745438959620,0.00046303,93553.0,93552.0,0.51481498]
[1745438959935,0.00046303,93553.0,93552.0,0.46531498]
[1745438960164,0.00046303,93553.0,93552.0,0.31262484]
[1745438961730,0.00046303,93553.0,93552.0,0.31162484]
[1745438962172,0.00046303,93553.0,93552.0,0.31262484]
[1745438962861,0.00046303,93553.0,93552.0,0.31162484]
[1745438963076,0.00046303,93553.0,93552.0,0.31262484]
[1745438963878,0.00046303,93553.0,93552.0,0.09884]
[1745438964079,0.00046303,93553.0,93552.0,0.31262484]
[1745438964464,0.00046303,93553.0,93552.0,0.31162484]
[1745438964884,0.00046303,93553.0,93552.0,0.31262484]
[1745438965703,0.00046303,93553.0,93552.0,0.31162484]
[1745438966124,0.00046303,93553.0,93552.0,0.31262484]
[1745438967224,0.00046303,93553.0,93552.0,0.39199085]
[1745438967693,1e-08,93553.0,93552.0,0.54778099]
[1745438967922,1e-08,93553.0,93552.0,0.36152484]
[1745438968162,1e-08,93553.0,93552.0,0.36140484]
[1745438968389,1e-08,93553.0,93552.0,0.36040484]
[1745438968602,1e-08,93553.0,93552.0,0.36140484]
[1745438968988,1e-08,93553.0,93552.0,0.36040484]
[1745438971762,1e-08,93553.0,93552.0,0.31150484]
[1745438979258,1e-08,93553.0,93552.0,0.15575652]
[1745438988597,1e-08,93553.0,93552.0,0.05803652]
[1745438988795,1e-08,93553.0,93552.0,0.15575652]
[1745438990013,1e-08,93553.0,93552.0,0.20654892]
[1745438990214,1e-08,93563.0,93562.0,0.21376199]
[1745438990418,1e-08,93567.0,93566.0,0.26315285]
[1745438990644,1e-08,93567.0,93566.0,0.37004299]
[1745438990645,4.947e-05,93567.0,93566.0,0.37004299]
[1745438990828,1e-08,93567.0,93566.0,0.38458384]
[1745438991034,0.0003504,93584.0,93579.0,0.26152316]
[1745438991335,0.00089965,93580.0,93579.0,0.31144316]
[1745438991695,0.00089965,93580.0,93579.0,0.41362494]
[1745438993535,0.00189965,93580.0,93579.0,0.41362494]
[1745438994057,0.00189965,93580.0,93579.0,0.31144316]
[1745438994438,0.00189965,93580.0,93579.0,0.21372316]
[1745438994613,0.00189965,93580.0,93579.0,0.31144316]
[1745438995579,0.00189965,93580.0,93579.0,0.21372316]
[1745438995790,0.00189965,93580.0,93579.0,0.31144316]
[1745438996293,0.00089965,93580.0,93579.0,0.21372316]
[1745438996496,0.00189965,93580.0,93579.0,0.31144316]
[1745438996918,0.00089965,93580.0,93579.0,0.31144316]
[1745438997119,0.00189965,93580.0,93579.0,0.31144316]
[1745438997379,0.00289965,93580.0,93579.0,0.31144316]
[1745438999431,0.00189965,93580.0,93579.0,0.31144316]
[1745438999621,0.00289965,93580.0,93579.0,0.31144316]
[1745438999889,0.00289965,93580.0,93579.0,0.21372316]
[1745439000101,0.00189965,93580.0,93579.0,0.21372316]
[1745439000314,0.00289965,93580.0,93577.0,0.2137258]
[1745439000549,0.00289965,93580.0,93578.0,0.21372372]
[1745439001488,0.00189965,93580.0,93578.0,0.21372372]
[1745439001610,0.00189965,93580.0,93573.0,0.21373663]
[1745439001834,0.00289965,93580.0,93572.0,0.0976]
[1745439002040,0.0087167,93580.0,93572.0,0.0976]
[1745439002253,0.0077167,93580.0,93575.0,0.21373171]
[1745439002448,0.0077167,93580.0,93573.0,0.21373505]
[1745439002714,0.00289965,93580.0,93577.0,0.21372744]
[1745439003184,0.00089965,93580.0,93578.0,0.21372326]